Cogmind - Beta 15 @@@ ROGUE MODE // 2025.05.25 @ 23:33:49 Player: Skysub Result: Destroyed by 2K-YTL(R) with Subdweller Machine Gun Performance ------------- Evolutions (0) 0 Regions Visited (2) 400 Robots Destroyed (14) 70 Value Destroyed (354) 354 Prototype IDs (0) 0 Alien Tech Used (0) 0 Bonus (0) 0 TOTAL SCORE: 824 Bonus ------- None Cogmind --------- Core Integrity 0/250 Matter 278/300 Energy 25/100 System Corruption 0% Temperature Cool (4) Movement Rolling (110) Ox2 Location -10/Subcaves Parts ------- > --- POWER (1) -------- (None) > --- PROPULSION (2) --- Wheel > --- UTILITY (2) ------ Large Storage Unit > --- WEAPON (2) ------- Medium Laser Subdweller Beam Cannon > --- INVENTORY (15) --- Heat Sink Small Storage Unit Small Laser Subdweller Machine Gun Mining Claw Peak State ------------ > --- POWER ------------ Light Ion Engine > --- PROPULSION ------- Light Treads Light Treads > --- UTILITY ---------- Large Storage Unit Structural Scanner > --- WEAPON ----------- Medium Laser Flamer > --- INVENTORY -------- Wheel Wheel Small Storage Unit Small Laser Subdweller Beam Cannon Mining Claw [Rating: 8] Favorites ----------- Power Light Ion Engine Engine Light Ion Engine Propulsion Light Treads Treads Light Treads Wheel Wheel Utility Structural Scanner Device Structural Scanner Storage Large Storage Unit Weapon Medium Laser Energy Gun Medium Laser Energy Cannon Subdweller Beam Cannon Ballistic Gun Subdweller Machine Gun Special Weapon Flamer Slashing Weapon Mining Claw Build | -11 -10 -10 ------- Run | Yrd Mat Sub Slots Evolved . | . . . Power . | . . . Propulsion . | . . . Utility . | . . . Weapon . | . . . Parts Attached 17 | 6 6 5 Power 2 | 1 1 . Engine 2 | 1 1 . Core . | . . . Reactor . | . . . Propulsion 5 | 2 1 2 Treads 3 | 2 1 . Leg . | . . . Wheel 2 | . . 2 Hover . | . . . Flight . | . . . Utility 4 | 1 3 . Device 1 | . 1 . Storage 3 | 1 2 . Processor . | . . . Hackware . | . . . Protection . | . . . Artifact . | . . . Weapon 6 | 2 1 3 Energy Gun 2 | 2 . . Energy Cannon 1 | . . 1 Ballistic Gun 1 | . . 1 Ballistic Cannon . | . . . Launcher . | . . . Special Weapon 1 | . . 1 Impact Weapon . | . . . Slashing Weapon 1 | . 1 . Piercing Weapon . | . . . Special Melee Weapon . | . . . Unidentified Prototypes . | . . . Parts Lost 8 | . 2 6 Power 2 | . 1 1 Propulsion 4 | . 1 3 Utility 1 | . . 1 Weapon 1 | . . 1 Highest Loss Streak 2 | . 1 2 To Critical Strikes . | . . . Average Backups 5 | 1 3 5 Power . | . . . Propulsion 1 | . 2 1 Utility 1 | . . 1 Weapon 1 | . . 2 Tool/Special . | . . . Unused Backups 1 | . . 1 Power . | . . . Propulsion . | . . . Utility 1 | . . 1 Weapon . | . . . Tool/Special . | . . . Average Slot Usage (%) 90 | . 94 89 Engine 11 | . 13 11 Treads 20 | . 25 18 Wheel 3 | . . 5 Device 13 | . 11 13 Storage 14 | . 14 14 Energy Gun 18 | . 28 14 Slashing Weapon 6 | . . 10 Peak Build Rating 8 | 6 7 8 Average Rating 6 | 4 6 6 On Entrance 4 | . 6 7 Naked Turns . | . . . Heaviest Build 29 | 13 29 28 Greatest Support 40 | 40 40 40 Greatest Overweight (x) 1 | . 1 1 Average Overweight (x) . | . . . Largest Inventory Capacity 15 | 8 15 15 Average Capacity 12 | 6 9 15 Most Carried 7 | 3 6 7 Average Carried 5 | 1 4 5 Final Capacity 15 | 8 15 15 Final Carried 5 | 3 4 5 Class Distribution -------------------- 100% | Mutant Dominant Class ---------------- Mutant | -10/Materials Mutant | -10/Subcaves Resources | -11 -10 -10 ----------- Run | Yrd Mat Sub Matter Collected 345 | 252 53 40 Remotely . | . . . Salvage Created 509 | . 262 247 Parts 26 | . 14 12 Haulers Intercepted . | . . . Recyclers Shooed . | . . . Parts Field Recycled . | . . . Retrieved Matter . | . . . Parts Self-Destructed 7 | . . 7 Prevented . | . . . Kills | -11 -10 -10 ------- Run | Yrd Mat Sub Combat Hostiles Destroyed 11 | . 6 5 Melee 1 | . . 1 Guns 9 | . 6 3 Cannons 1 | . . 1 Classes Destroyed 6 | . 4 2 Worker 2 | . 2 . Recycler 1 | . 1 . Swarmer 3 | . 3 . Grunt 5 | . 3 2 Artisan 1 | . . 1 Subdweller 3 | . . 3 Best Kill Streak 3 | . 3 2 Combat Bots Only 2 | . 2 2 Max Kills in Single Turn 2 | . 2 1 Gunslinging . | . . . Exploded . | . . . Melee 1 | . . 1 Uniques/NPCs Destroyed . | . . . Combat | -11 -10 -10 -------- Run | Yrd Mat Sub Hostile Shots Fired 105 | . 52 53 Missed 29 | . 15 14 Hits 76 | . 37 39 Projectile 76 | . 37 39 Critical Strikes 3 | . . 3 Damage Taken 1138 | . 472 666 Core 265 | . 107 158 Absorbed by Shields . | . . . Core Remaining (%) 100 | 100 . . Volleys Fired 55 | . 28 27 Largest 2 | . 2 2 Hottest 150 | . 90 150 Shots Fired 93 | . 56 37 Gun 89 | . 56 33 Cannon 3 | . . 3 Launcher . | . . . Special 1 | . . 1 Kinetic 6 | . . 6 Thermal 87 | . 56 31 Explosive . | . . . Electromagnetic . | . . . Robot Hit Streak 17 | . 7 17 Robot Miss Streak 7 | . 7 2 Penetration Max . | . . . Secondary Targets 2 | . 1 1 Max Gunslinging Chain 1 | . 1 1 Shots Hit Robots 65 | . 32 33 Core Hits 22 | . 12 10 Critical Kills . | . . . Critical Parts Destroyed . | . . . Critical Strikes 4 | . 2 2 Burn 4 | . 2 2 Melee Attacks 14 | . 2 12 Impact . | . . . Slashing 14 | . 2 12 Piercing . | . . . Sneak Attacks 1 | . . 1 Combat Hostiles . | . . . Follow-up Attacks . | . . . Damage Inflicted 966 | . 387 579 Guns 772 | . 383 389 Cannons 55 | . . 55 Explosions . | . . . Melee 124 | . . 124 Ramming 4 | . 4 . Kinetic 110 | . . 110 Thermal 728 | . 383 345 Explosive . | . . . Electromagnetic . | . . . Impact . | . . . Slashing 124 | . . 124 Piercing . | . . . Highest Corruption . | . . . Average Corruption . | . . . Corruption Purged . | . . . Corruption Blocked . | . . . Overload Shots . | . . . Overflow Damage 10 | . . 10 Projectiles . | . . . Explosions . | . . . Melee 10 | . . 10 Knockbacks . | . . . Impact . | . . . Kinetic . | . . . Secondary . | . . . Self-Inflicted Damage . | . . . Shots . | . . . Rammed . | . . . Targets Rammed 1 | . 1 . Kicked . | . . . Crushed 1 | . 1 . Highest Temperature 232 | . 232 15 Average Temperature 92 | . 98 7 Received Heat Transfer 447 | . 234 213 Siege Activations . | . . . Martial Activations . | . . . Shielding Activations . | . . . Robots Disrupted 1 | . . 1 Combat Hostiles 1 | . . 1 Robots Corrupted . | . . . Combat Hostiles . | . . . Parts Fried . | . . . Impact Corruptions . | . . . Robots Melted . | . . . Combat Hostiles . | . . . Parts Melted 5 | . 4 1 Heat Transferred 2269 | . 1153 1116 Parts Sabotaged . | . . . Parts Stolen . | . . . Parts Stripped . | . . . Power Chain Reactions . | . . . Alert | -11 -10 -10 ------- Run | Yrd Mat Sub Maximum Alert Level . | . . . Low Security (%) 100 | 100 100 . Level 1 . | . . . Level 2 . | . . . Level 3 . | . . . Level 4 . | . . . Level 5 . | . . . High Security . | . . . Max Security . | . . . Peak Influence 108 | . 108 . Initial . | . . . Average 33 | . 38 . Influence Increases 288 | . 238 50 Destroy 0b10 Robot/C 160 | . 120 40 Destroy 0b10 Robot/NC 15 | . 15 . Destroy Leader 40 | . 30 10 Successful Hack 12 | . 12 . Select Force Hacks 30 | . 30 . Destroy Structure 1 | . 1 . Lose Combat Pursuer 30 | . 30 . Influence Decreases 288 | . 169 119 Entered New Map 34 | . . 34 Time Decay 234 | . 149 85 Lost Part 20 | . 20 . Squads Dispatched 1 | . 1 . Investigation 1 | . 1 . Extermination . | . . . Reinforcement . | . . . Assault . | . . . Garrison . | . . . Intercept . | . . . Searches Triggered . | . . . Construction Impeded . | . . . Haulers Reinforced . | . . . Active Scanning Responses . | . . . Cargo Convoy Interrupts . | . . . Stealth | -11 -10 -10 --------- Run | Yrd Mat Sub Distress Signals 2 | . 2 . Communications Jammed . | . . . Distress Signals . | . . . Times Spotted 21 | . 14 7 Peak Tracking Total 3 | . 3 2 Tactical Retreats 2 | . 2 . Traps | -11 -10 -10 ------- Run | Yrd Mat Sub Traps Triggered . | . . . Indirectly . | . . . Trap Hack Attempts . | . . . Triggered . | . . . Disarmed . | . . . Reprogrammed . | . . . Reused . | . . . Traps Extracted . | . . . Installed . | . . . Triggered . | . . . Machines | -11 -10 -10 ---------- Run | Yrd Mat Sub Machines Disabled . | . . . Max in Single Turn . | . . . Machines Repaired . | . . . Machines Dismantled . | . . . Machines Sabotaged . | . . . Overloaded Fab Kills . | . . . Hacking | -11 -10 -10 --------- Run | Yrd Mat Sub Machines Accessed 6 | . 5 1 Terminals 4 | . 4 . Fabricators . | . . . Repair Stations . | . . . Recycling Units 1 | . 1 . Scanalyzers . | . . . Garrison Access . | . . . Total Hacks 16 | . 15 1 Successful 11 | . 10 1 Failed 5 | . 5 . Catastrophic . | . . . Database Lockouts . | . . . Manual 11 | . 11 . Terminals 12 | . 12 . Fabricators . | . . . Repair Stations . | . . . Recycling Units 3 | . 3 . Scanalyzers . | . . . Garrison Access . | . . . Terminal Hacks 4 | . 3 1 Open Door 1 | . . 1 Terminal Index 1 | . 1 . Zone Layout 2 | . 2 . Fabricator Hacks . | . . . Repair Station Hacks . | . . . Recycling Unit Hacks 2 | . 2 . Report Inventory 1 | . 1 . Retrieve Components 1 | . 1 . Scanalyzer . | . . . Garrison Access Hacks . | . . . Unauthorized Hacks 5 | . 5 . Terminals 4 | . 4 . Botnet 4 | . 4 . Fabricators . | . . . Repair Stations . | . . . Recycling Units 1 | . 1 . Tunnel 1 | . 1 . Scanalyzers . | . . . Garrison Access . | . . . Data Cores Recovered . | . . . Used . | . . . Hacking Detections 4 | . 4 . Full Trace Events . | . . . Feedback Events . | . . . Feedback Blocked . | . . . Robot Schematics Acquired . | . . . Robots Built . | . . . Authchips . | . . . Time . | . . . Total Robot Build Rating . | . . . Part Schematics Acquired . | . . . Parts Built . | . . . Authchips . | . . . Time . | . . . Total Part Build Rating . | . . . Parts Repaired . | . . . Time . | . . . Parts Recycled . | . . . Recycled Matter . | . . . Retrieved Matter . | . . . Retrieved Components 3 | . 3 . Parts Scanalyzed . | . . . Part Schematics Acquired . | . . . Parts Damaged . | . . . Bothacking | -11 -10 -10 ------------ Run | Yrd Mat Sub Used RIF Installer . | . . . Robots Hacked . | . . . Non-combat . | . . . Combat . | . . . Robot Hacks Applied . | . . . Relay Couplers Released . | . . . Fabnet Peak Effective % . | . . . Robots Rewired . | . . . Allies Hacked . | . . . Hacks Repelled . | . . . Allies | -11 -10 -10 -------- Run | Yrd Mat Sub Total Allies . | . . . Largest Group . | . . . Highest-Rated Group . | . . . Highest-Rated Ally . | . . . Total Orders . | . . . Ally Attacks . | . . . Total Damage . | . . . Kills . | . . . Allies Corrupted . | . . . Allies Melted . | . . . Intel | -11 -10 -10 ------- Run | Yrd Mat Sub Active Infowar (turns) 1395 | . 393 1002 Structural 1395 | . 393 1002 Robot Analysis Total . | . . . Derelict Logs Recovered . | . . . Drone Launches . | . . . Drone Recoveries . | . . . Exploration | -11 -10 -10 ------------- Run | Yrd Mat Sub Turns Passed 1567 | 81 457 1029 Spaces Moved 851 | 49 214 588 Core 8 | 8 . . Treads 671 | 41 214 416 Legs . | . . . Wheels 172 | . . 172 Hover . | . . . Flight . | . . . Fastest Speed 50 | 50 160 95 Average Speed 155 | 142 160 155 Slowest Speed 240 | 160 240 240 Overloaded Moves . | . . . Propulsion Burnouts . | . . . Robots Hopped . | . . . Potential Cave-ins . | . . . Cave-ins Triggered . | . . . Exploration Rate (%) 26 | 5 36 38 Regions Visited 2 Branch Regions 1 Pre-discovered Areas 1 | . 1 . Known Exits Taken . | . . . Unknown Exits Taken 2 | 1 1 . Scrap Searched . | . . . Spaces Dug 1 | . 1 . Terrain Destroyed 2 | . 1 1 Melee 1 | . 1 . Projectile 1 | . . 1 AOE . | . . . Terrain Rammed . | . . . Walls Destroyed . | . . . Machines Disabled . | . . . Actions | -11 -10 -10 --------- Run | Yrd Mat Sub Total 965 | 58 266 641 Wait 16 | . 12 4 Move 849 | 48 213 588 Hop . | . . . Pick Up 10 | 4 2 4 Fast Attach 7 | 5 2 . Attach 6 | 1 2 3 Detach 1 | . 1 . Swap 5 | . 2 3 Drop 1 | . 1 . Fire 55 | . 28 27 Melee 14 | . 2 12 Ram . | . . . Kick . | . . . Crush 1 | . 1 . Escape Stasis . | . . . Rewire . | . . . Trap . | . . . Miscellaneous . | . . . Route ------- -11/Scrapyard -10/Materials (discovered 3 exits: [*Min x2] / *Sub) -10/Subcaves (discovered 1 exit: [*Mat]) History --------- Turn | Location | Event 17 | -11/Scrapyard | Discovered new exit (range 16) 82 | -11/Scrapyard | Entered Materials 89 | -10/Materials | Discovered new exit (range 15) 300 | -10/Materials | Build established: Mutant 436 | -10/Materials | Discovered new exit (range 11) 519 | -10/Materials | Discovered new exit (range 7) 539 | -10/Materials | Entered Subcaves 621 | -10/Subcaves | Shifting Twisted Machinery released Flamer 649 | -10/Subcaves | Shifting Twisted Machinery released Sub. Beam Cannon 1042 | -10/Subcaves | Discovered new exit (range 11) 1061 | -10/Subcaves | Core integrity fell below 50% 1335 | -10/Subcaves | Ambushed by angry Subdweller bent on revenge 1362 | -10/Subcaves | Core integrity fell below 20% 1568 | -10/Subcaves | Destroyed by 2K-YTL(R) with Subdweller Machine Gun Last Messages --------------- Subatomizers dissect the Multitool. GR-GJX(R) angrily emerges from the Twisted Machinery. GR-GJX(R): "SUBHATE!" Lgt. Ion Engine destroyed. Subatomizers dissect the Multitool. Lgt. Treads destroyed. GR-GJX(R) destroyed. Acquired 20 matter. Subatomizers dissect the Multitool. Acquired Sub. Machine Gun. Structural Scanner destroyed. Sub. Laser melted. 0X-MTY(R) destroyed. Switching to secondary target: TA-APT(R). Sub. Machine Gun shoots sparks and powers down. TA-APT(R) affixes Scrap Shield Fragment to Scrap Shield. Wheel destroyed. TA-APT(R) destroyed. Map ----- +----------------------------------------------------+ | ?????????????????????????????????????????????????? | | ?#####????????????#####??????????????????????????? | | #######???????##########?????????????????????????? | | ### ####??????###### ####????????????????????????? | | ########?## ####???????????????????????? | | ########## ####??????????????????????? | | #### ##### ####?????????????????????? | | ### #### %####????????????????????? | | ## ### ## % ###????????????????????? | | ## ## ##????????????????????? | | ### ##????????????????????? | | ### ### ##????????????????????? | | ## ### ### ###????????????????????? | | ##### ## ## ###????????????????????? | | ######### ## ##?????????????????????? | | ##?####### ## ###?????????????????????? | | ???????#### ##% ###???####??????????????? | | ????????### ## ##???#####????####??????? | | ?????????## % #####???### ###?? ####?????? | | ########### ########## #### ####????? | | ########### ########## #### ###????? | | ## #### ### ###### #### ## ##????? | | # ############# #### " "?? | | # ######### ##### "#"" ##??? | | # ###### ##### ""##???? ###??? | | ## ## ###### @ !&### ###"?? ###?? | | ## #### ## !%%= ###""" ##?? | | # ##### =&R ""[""#?? | | ## ##### # # % ""?? | | ## ##### ## ## ### ##????"?? | | ############# ### ;#######??????? | | ######### ## ##### ########??????? | | ?????### ### ##### ##????????????? | | ?????## #### ######## ##????????????? | | ??? ##### ##?###########????????????? | | ?? ####### ###????########????????????? | | ?? #####??######????????????????????????? | | ?? #####???###???????????????????????????? | | ??? ######????????????????????????????????????? | | ??? #####?????????????????????????????????????? | | ??? ???????????????????????????????????????????? | | ?????????????????????????????????????????????????? | | ?????????????????????????????????????????????????? | | ?????????????????????????????????????????????????? | | ?????????????????????????????????????????????????? | | ?????????????????????????????????????????????????? | | ?????????????????????????????????????????????????? | | ?????????????????????????????????????????????????? | | ?????????????????????????????????????????????????? | | ?????????????????????????????????????????????????? | +----------------------------------------------------+ Best States ------------- Heat Dissipation 25 Energy Generation 10 Energy Capacity 250 Matter Stores 300 Matter Capacity 300 Sight Range 16 Terrain Scan Density 10 Evasion (%) 41 Recoil Reduction 2 Item Schematics ----------------- None Robot Schematics ------------------ None Fabricated ------------ Nothing Repaired ---------- Nothing Alien Tech Used ----------------- None Achievements -------------- None Challenges ------------ None Game ------ Seed GreatThiefGun Manual? 0 Play Time 00:13:48 Cumulative 99.2 hours Start 2025.05.25 @ 23:20:59 End 2025.05.25 @ 23:33:49 Sessions 1 Manual Loads 0 Difficulty Rogue Special Mode None Game No. 103 Rogue 103 Adventurer 0 Explorer 0 Win Type - Total 2 Types 1/0/0/1/0/0/0/0/0/0 Lore% 54 Gallery% 53 Achievement% 47 Wizard Run 0 Options --------- Layout 1 ASCII 0 Keyboard 1 Movement Arrows Keybinds 0 Fullscreen 1 Font 24/Smallcaps Map View 50x35 Zoom Use 0% Tactical HUD 0 Map Filters NONE Filters NONE Steam 1 RUN: 79efa71a-e61b-4b60-a665-673e0384b3e6